bitfinex/quotes_ETHUSD_20220226
["timestamp","ask_amount","ask_price","bid_price","bid_amount"]
[1645910092179,0.04246927,2849.4,2847.1,0.3529]
[1645910092379,1.38015074,2849.0,2847.3,2.10902]
[1645910092578,1.38015074,2849.0,2847.8,0.878]
[1645910092779,1.38015074,2849.0,2847.6,1.75598]
[1645910092780,0.00345479,2848.9,2847.6,1.75598]
[1645910092980,0.35635479,2848.9,2847.6,1.0]
[1645910093177,0.35635479,2848.9,2847.2,3.5]
[1645910093382,0.3529,2848.7,2847.3,0.1404]
[1645910093578,0.3529,2848.7,2847.1,0.1404]
[1645910093579,1.20968888,2847.8,2847.1,0.1404]
[1645910093786,1.20968888,2847.8,2847.2,6.9744]
[1645910094420,0.09209,2847.7,2847.2,6.9744]
[1645910095021,0.35635516,2847.8,2847.2,6.9744]
[1645910095022,0.00345516,2847.8,2847.2,6.9744]
[1645910095224,0.3529,2848.1,2847.2,6.9744]
[1645910095422,3.5,2847.8,2847.2,6.9744]
[1645910096023,1.06693025,2847.5,2847.2,6.9244]
[1645910097423,0.00279806,2847.6,2847.2,6.9244]
[1645910097866,0.00279806,2847.6,2847.2,6.2279198]
[1645910098468,3.8529,2847.8,2847.2,6.2279198]
[1645910098667,0.00279811,2847.6,2847.2,6.2279198]
[1645910099670,0.12591702,2847.7,2847.2,6.2279198]
[1645910100071,0.00279811,2847.6,2847.2,6.2279198]
[1645910100472,0.00279811,2847.6,2847.2,7.2279198]
[1645910100671,0.00279811,2847.6,2847.3,3.5]
[1645910100872,0.12591702,2847.7,2847.3,0.1404]
[1645910101069,0.00279811,2847.6,2847.3,1.1404]
[1645910101274,0.00279811,2847.6,2847.3,0.1404]
[1645910101534,0.00279811,2847.6,2847.2,6.2279198]
[1645910103321,0.12591702,2847.7,2847.2,6.2279198]
[1645910103520,0.00083943,2847.6,2847.2,6.2279198]
[1645910103721,1.2894633,2847.5,2847.2,6.2279198]
[1645910104323,3.5,2847.4,2847.2,6.2279198]
[1645910104523,1.2894633,2847.5,2847.2,6.2279198]
[1645910105126,1.41495935,2847.5,2847.2,6.2279198]
[1645910105766,1.31495935,2847.5,2847.2,6.2279198]
[1645910106368,0.12549605,2847.5,2847.2,6.2279198]
[1645910109118,0.21892605,2847.5,2847.4,0.44758072]
[1645910109326,0.21892605,2847.5,2847.4,0.89516144]
[1645910109522,0.21892605,2847.5,2846.2,0.1404]
[1645910109523,0.3529,2847.2,2846.2,0.1404]
[1645910109723,10.88206,2847.1,2846.2,0.1404]
[1645910109929,10.88206,2847.1,2845.9,0.5]
[1645910109930,0.3529,2846.8,2845.9,0.5]
[1645910110122,0.3529,2846.6,2845.9,0.5]
[1645910110327,0.3529,2846.6,2845.2,0.25]
[1645910110328,0.7749,2846.5,2845.2,0.25]
[1645910110523,0.1405,2846.4,2844.6,3.8529]
[1645910110727,0.422,2846.3,2846.1,0.00540258]
[1645910110923,1.222,2846.3,2846.1,0.00540258]
[1645910111532,1.43900162,2846.2,2846.1,0.00540258]
[1645910111733,0.6529,2846.1,2844.7,3.5]
[1645910111931,0.6529,2846.1,2845.2,0.02161704]
[1645910111932,0.3529,2845.9,2845.2,0.02161704]
[1645910112131,3.922,2845.8,2845.2,0.02161704]
[1645910112330,0.18558556,2845.7,2845.2,0.02161704]
[1645910112531,0.74808556,2845.7,2845.2,0.02161704]
[1645910112781,1.39163451,2845.5,2845.2,0.02161704]
[1645910112989,3.8529,2845.4,2844.4,0.25]
[1645910113189,3.8529,2845.4,2844.9,0.02161868]
[1645910113190,0.1406,2845.3,2844.9,0.02161868]
[1645910113985,12.43864798,2845.3,2844.9,0.02161868]
[1645910114186,0.3529,2845.1,2843.7,0.25]
[1645910114388,0.3529,2844.9,2843.3,1.0]
[1645910114588,0.3529,2844.9,2843.1,1.182]
[1645910114589,5.0,2844.7,2844.5,0.02162092]
[1645910114791,0.74386279,2844.6,2844.5,0.02162092]
[1645910114991,9.5,2844.5,2842.8,0.6639545]
[1645910115190,1.01801667,2843.6,2842.8,0.6139545]
[1645910115391,0.422,2844.4,2844.0,0.56697436]
[1645910115392,12.8325148,2844.3,2844.0,0.56697436]
[1645910115596,0.5626,2844.3,2844.0,0.56697436]
[1645910115794,2.0,2844.5,2844.0,0.56697436]
[1645910115991,5.4607,2844.7,2844.0,0.56697436]
[1645910116190,1.12392073,2844.4,2844.0,0.51697436]
[1645910118127,1.79452611,2844.4,2844.0,0.51697436]
[1645910118322,0.1406,2844.3,2844.0,0.51697436]
[1645910119021,0.3529,2844.1,2843.1,0.37477963]
[1645910119224,0.3529,2844.1,2844.0,0.00540594]
[1645910119422,11.5,2844.2,2844.0,0.00540594]
[1645910119423,0.01979177,2844.2,2844.0,0.00540594]
[1645910119823,0.11157177,2844.2,2844.0,0.00540594]
[1645910120275,0.46447177,2844.2,2843.1,0.25]
[1645910120475,0.46447177,2844.2,2843.5,0.01821193]
[1645910120476,1.29727731,2843.7,2843.5,0.01821193]
[1645910121477,0.1323,2844.1,2843.0,11.1429]
[1645910121679,0.01979177,2844.2,2843.5,0.0045531]
[1645910122279,0.01979177,2844.2,2843.5,0.3574531]
[1645910122677,0.01979177,2844.2,2843.5,0.3529]
[1645910122880,0.01979177,2844.2,2843.7,0.0045527]
[1645910123484,0.01979177,2844.2,2843.7,0.3574527]
[1645910123683,0.01979177,2844.2,2843.8,14.6429]
[1645910124118,0.01979177,2844.2,2844.0,11.1429]
[1645910124317,0.01979177,2844.2,2844.1,18.175]
[1645910124518,0.01715952,2844.5,2844.1,7.385]
[1645910124720,0.01715952,2844.5,2844.1,8.385]
[1645910125322,0.01715952,2844.5,2844.2,0.00540774]
[1645910126124,0.01715952,2844.5,2844.2,0.00139156]
[1645910126424,0.01715952,2844.5,2844.1,7.0321]
[1645910126623,0.01715952,2844.5,2844.2,0.00540766]
[1645910127426,0.01715952,2844.5,2844.1,7.0321]
[1645910127624,0.01715952,2844.5,2844.1,7.0366501]
[1645910128672,0.01715952,2844.5,2844.1,7.0321]
[1645910128870,0.01622329,2844.5,2844.1,7.03750793]
[1645910129770,0.01622329,2844.5,2844.1,7.0321]
[1645910129972,3.51622329,2844.5,2844.1,7.0321]
[1645910130175,3.51622329,2844.5,2844.1,8.03750793]
[1645910130375,3.51622329,2844.5,2844.1,8.91675793]
[1645910130775,3.5,2844.5,2844.1,7.03750793]
[1645910130979,3.5,2844.5,2844.1,7.0321]
[1645910131382,3.5,2844.5,2844.1,7.03750793]
[1645910131923,1.03055202,2844.4,2844.1,7.03750793]
[1645910132323,3.5,2844.5,2844.1,7.0321]
[1645910132523,3.5,2844.5,2844.1,7.03750793]
[1645910133632,1.30469627,2844.4,2844.1,7.0321]
[1645910133831,1.30469627,2844.4,2844.1,7.03750793]
[1645910134035,1.33826032,2844.4,2844.1,7.03750793]
[1645910134628,1.33826032,2844.4,2844.1,7.0321]
[1645910134829,1.33826032,2844.4,2844.1,7.03750792]
[1645910135469,3.5,2844.5,2844.4,0.24654921]
[1645910135874,8.23708452,2844.5,2844.4,0.24654921]
[1645910136069,5.30317369,2844.5,2844.4,0.24654921]
[1645910136670,7.99892682,2844.4,2844.1,7.03750798]
[1645910136868,0.422,2844.3,2844.1,7.03750798]
[1645910137069,0.422,2844.3,2844.1,7.0321]
[1645910137269,0.422,2844.3,2844.1,7.03750792]
[1645910138275,0.422,2844.3,2844.1,7.0321]
[1645910138477,0.422,2844.3,2844.1,7.03664913]
[1645910138682,0.1323,2844.2,2844.1,7.03664913]
[1645910138879,0.5543,2844.2,2844.1,7.03664913]
[1645910139139,11.3443,2844.2,2844.1,7.03664913]
[1645910139338,11.212,2844.2,2844.1,7.0321]
[1645910139543,0.422,2844.2,2844.1,7.0321]
[1645910139741,0.61044717,2844.2,2844.1,7.0321]
[1645910139940,11.40044717,2844.2,2844.1,7.0321]
[1645910140342,0.61044717,2844.2,2844.1,7.0321]
[1645910141143,0.422,2844.2,2844.1,7.0321]
[1645910141745,0.422,2844.2,2844.1,6.9821]
[1645910147732,0.99892682,2844.4,2844.1,6.9821]
[1645910148334,0.99892682,2844.4,2844.1,7.1227]
[1645910149237,0.99892682,2844.4,2844.1,6.9821]
[1645910149438,0.99892682,2844.4,2844.2,0.1406]
[1645910150134,0.99892682,2844.4,2844.1,6.98740852]
[1645910150372,0.99892682,2844.4,2844.1,6.9821]
[1645910150373,0.94892682,2844.4,2844.1,6.9821]
[1645910150572,0.94892682,2844.4,2844.1,6.98740854]
[1645910151473,0.94892682,2844.4,2844.1,6.9821]
[1645910151673,0.94892682,2844.4,2844.1,6.98740852]
[1645910152476,2.09405428,2844.4,2844.1,6.98740852]
[1645910152674,2.09405428,2844.4,2844.1,6.9821]
[1645910152875,0.94892682,2844.4,2844.1,6.9821]
[1645910153079,0.94892682,2844.4,2844.1,6.98712267]
[1645910153776,0.94892682,2844.4,2844.1,6.9321]
[1645910154017,1.35414845,2844.3,2844.1,6.9321]
[1645910154219,1.35414845,2844.3,2844.1,6.93712267]
[1645910155018,1.35414845,2844.3,2844.1,6.9321]
[1645910155220,1.35414845,2844.3,2844.1,6.93712265]
[1645910155421,1.30177,2844.2,2844.1,6.93712265]
[1645910156224,1.30177,2844.2,2844.1,6.9321]
[1645910156426,0.5626,2844.2,2844.1,6.9321]
[1645910158278,0.422,2844.2,2844.1,6.9321]
[1645910160282,1.30176,2844.2,2844.1,6.9321]
[1645910161925,12.09176,2844.2,2844.1,6.9321]
[1645910162129,11.5,2844.1,2843.5,0.02014878]
[1645910162327,11.5,2844.1,2843.0,0.25]
[1645910162328,4.2749,2844.0,2843.1,7.36]
[1645910162530,5.23349979,2843.9,2843.5,0.02014878]
[1645910162729,0.37409979,2843.9,2843.5,0.02014878]
[1645910162928,2.897,2844.2,2843.5,0.02014878]
[1645910163129,2.897,2844.2,2843.6,1.48620572]
[1645910163331,7.82064845,2844.3,2843.5,0.02014878]
[1645910163332,1.35414845,2844.3,2843.5,0.02014878]
[1645910163529,1.35414845,2844.3,2843.2,0.1406]
[1645910163530,4.34924845,2844.3,2843.2,0.1406]
[1645910163729,4.34924845,2844.3,2843.3,1.48624449]
[1645910164430,4.34924845,2844.3,2843.4,0.3529]
[1645910164635,4.34924845,2844.3,2843.5,1.48624449]
[1645910164833,1.35414845,2844.3,2843.3,1.48624449]
[1645910165034,1.35414845,2844.3,2843.4,1.48614876]
[1645910165274,1.35414845,2844.3,2843.5,1.48614876]
[1645910165468,1.35414845,2844.3,2843.2,0.1406]
[1645910165672,1.35414845,2844.3,2843.3,1.48617989]
[1645910166273,1.20069376,2843.8,2843.3,1.48617989]
[1645910166574,0.1406,2844.3,2843.4,0.3529]
[1645910166773,0.1406,2844.3,2843.5,1.48617989]
[1645910167072,0.94892682,2844.4,2843.5,1.48617989]
[1645910167474,0.94892682,2844.4,2843.7,0.00541255]
[1645910167674,1.44408275,2843.8,2843.7,0.00541255]
[1645910168279,1.44408275,2843.8,2843.2,0.1406]
[1645910168476,1.44408275,2843.8,2843.3,1.48618364]
[1645910168677,1.44408275,2843.8,2843.6,0.00541271]
[1645910169120,1.44408275,2843.8,2843.2,0.16225408]
[1645910169121,1.44408275,2843.8,2843.2,0.11766679]
[1645910169319,1.44408275,2843.8,2843.3,1.48623032]
[1645910169727,1.63513774,2843.8,2843.1,7.36]
[1645910170225,0.422,2843.7,2843.1,7.36]
[1645910170426,0.83155331,2843.7,2843.1,7.36]
[1645910170626,0.25092388,2843.6,2843.1,7.36]
[1645910170829,1.320521,2843.7,2843.1,7.36]
[1645910171031,1.320521,2843.7,2842.8,0.00361236]
[1645910171032,0.87998,2843.5,2842.8,0.00361236]
[1645910171227,0.87998,2843.5,2842.5,1.48659327]
[1645910171228,0.5626,2843.4,2842.5,1.48659327]
[1645910171429,0.5626,2843.4,2842.6,0.00361236]
[1645910171430,0.422,2843.4,2842.6,0.00361236]
[1645910171829,1.42334741,2843.3,2842.6,0.00361236]
[1645910172135,19.8732323,2843.2,2842.9,1.391e-05]
[1645910172331,19.8732323,2843.2,2842.3,0.00361236]
[1645910172332,15.79,2843.0,2842.3,0.00361236]
[1645910172532,2.0,2842.3,2841.8,0.00368351]
[1645910172789,1.3023838,2842.2,2841.8,0.00368351]
[1645910172977,2.0,2842.3,2841.7,7.36]
[1645910172978,1.26363171,2842.1,2841.7,7.36]
[1645910173176,2.0,2842.3,2841.8,1.48703464]
[1645910173775,2.0,2842.3,2841.7,7.36]
[1645910174776,1.37919118,2842.2,2841.7,7.36]
[1645910175181,1.37919118,2842.2,2841.5,0.00368351]
[1645910175375,1.37919118,2842.2,2841.1,7.36368351]
[1645910175575,1.37919118,2842.2,2841.2,1.49076139]
[1645910175776,1.37919118,2842.2,2841.3,0.00368351]
[1645910175976,1.37919118,2842.2,2841.3,1.49076139]
[1645910176178,1.37919118,2842.2,2841.4,0.04092649]
[1645910177022,1.37919118,2842.2,2841.7,0.00541102]
[1645910177427,1.80119118,2842.2,2841.7,0.00541102]
[1645910178031,2.15409118,2842.2,2841.4,0.04092649]
[1645910178330,1.80119118,2842.2,2841.8,0.0045198]
[1645910178531,1.94179118,2842.2,2841.8,0.0045198]
[1645910179132,2.29469118,2842.2,2840.9,0.04376861]
[1645910179342,2.29469118,2842.2,2841.0,1.48709758]
[1645910179343,2.24469118,2842.2,2841.0,1.48709758]
[1645910179532,2.24469118,2842.2,2841.1,0.00368351]
[1645910179730,2.24469118,2842.2,2841.1,0.04631527]
[1645910179930,2.24469118,2842.2,2841.2,1.48709758]
[1645910180134,0.9155,2842.2,2841.2,1.48709758]
[1645910180396,0.9155,2842.2,2841.3,0.04517842]
[1645910180694,0.9155,2842.2,2841.3,0.04149491]
[1645910180695,11.1429,2842.0,2841.3,0.04149491]
[1645910180893,11.1429,2842.0,2841.4,0.04092649]
[1645910180894,10.79,2841.8,2841.4,0.04092649]
[1645910181093,10.79,2841.8,2840.8,0.00368351]
[1645910181094,11.212,2841.7,2840.9,0.04376861]
[1645910181295,0.3529,2841.6,2840.9,0.04376861]
[1645910181494,11.7055,2841.5,2840.9,0.04376861]
[1645910181695,1.06041745,2841.4,2840.9,0.04376861]
[1645910181896,3.5,2841.3,2841.2,0.00541049]
[1645910182095,3.922,2841.3,2841.2,0.00541049]
[1645910182499,10.79,2841.1,2840.0,6.0]
[1645910182699,0.3529,2840.8,2840.0,6.0]
[1645910182906,15.2057,2840.7,2840.0,5.95]
[1645910183098,0.422,2840.6,2840.0,5.95]
[1645910183297,1.16475527,2840.2,2840.0,5.95]
[1645910183700,1.15960027,2840.2,2840.0,5.95]
[1645910184131,2.46258027,2840.2,2840.0,5.95]
[1645910184531,13.25258027,2840.2,2840.0,5.95]
[1645910184732,14.29,2840.1,2840.0,5.95]
[1645910184933,14.8528,2840.1,2840.0,5.95]
[1645910185131,15.1528,2840.1,2840.0,5.95]
[1645910186233,5.3628,2840.1,2840.0,5.95]
[1645910186431,5.3628,2840.1,2840.0,5.9]
[1645910186432,1.422,2840.1,2840.0,5.9]
[1645910186633,1.0,2840.1,2840.0,5.9]
[1645910186831,0.00305035,2840.8,2840.0,5.9]
[1645910187031,2.0,2840.7,2840.0,6.6926]
[1645910187889,2.0,2840.7,2840.2,0.00540721]
[1645910188090,1.23523311,2840.8,2840.2,0.00540721]
[1645910188091,0.00305067,2840.8,2840.2,0.00540721]
[1645910188295,0.00305067,2840.8,2840.2,1.12190721]
[1645910188489,0.00305067,2840.8,2840.3,0.3529]
[1645910188894,6.4725,2841.7,2840.3,0.3529]
[1645910189091,8.4725,2841.7,2840.6,0.3529]
[1645910189295,0.00305088,2840.8,2840.6,0.3529]
[1645910189990,8.4725,2841.7,2840.5,7.36]
[1645910189991,8.4725,2841.7,2840.5,7.7129]
[1645910190196,2.0,2841.7,2840.6,3.50366871]
[1645910190393,0.00305104,2840.8,2840.7,0.00366871]
[1645910190596,0.00305104,2840.8,2840.6,0.00540666]
[1645910191396,1.3946935,2841.1,2840.5,7.36]
[1645910191634,1.3946935,2841.1,2840.6,0.00431087]
[1645910192436,1.3946935,2841.1,2840.1,0.00366871]
[1645910192638,1.3946935,2841.1,2840.6,0.00431087]
[1645910193740,11.95630726,2841.0,2840.3,0.00366871]
[1645910193937,11.95630726,2841.0,2840.6,0.00522632]
[1645910193938,11.60646527,2841.0,2840.6,0.00522632]
[1645910194138,12.60646527,2841.0,2840.6,0.00522632]
[1645910194538,0.8808919,2840.8,2840.6,0.00522632]
[1645910194737,2.35590217,2840.7,2840.6,0.00522632]
[1645910194938,0.19109036,2840.6,2840.2,6.9908]
[1645910195140,0.1408,2840.5,2840.2,6.9908]
[1645910195778,1.300498,2840.4,2840.2,6.9908]
[1645910196181,0.88094,2840.3,2840.2,6.9908]
[1645910196484,1.60294,2840.3,2840.2,6.99591835]
[1645910196684,1.74374,2840.3,2840.2,6.99591835]
[1645910197181,1.74374,2840.3,2840.2,6.9908]
[1645910198286,16.79,2840.1,2840.0,0.76841593]
[1645910198490,11.212,2840.1,2840.0,0.76841593]
[1645910198686,12.512,2840.1,2840.0,0.76841593]
[1645910199127,12.512,2840.1,2839.7,7.09447936]
[1645910199128,10.79,2839.9,2839.7,7.09447936]
[1645910199329,0.422,2839.8,2839.7,0.02013871]
[1645910199727,0.422,2839.8,2839.4,0.00366871]
[1645910199728,11.212,2839.8,2839.4,0.00366871]
[1645910199929,11.212,2839.8,2839.3,7.36]
[1645910199930,1.422,2839.8,2839.3,7.36]
[1645910200131,1.422,2839.8,2839.0,0.00366871]
[1645910200333,0.422,2839.8,2839.0,0.00366871]
[1645910201536,1.76228,2839.7,2839.0,0.00366871]
[1645910201837,1.76228,2839.7,2839.1,0.0203606]
[1645910201838,1.0,2839.5,2839.1,0.0203606]
[1645910202042,0.422,2839.4,2839.1,0.0203606]
[1645910202436,0.422,2839.4,2839.3,0.00449331]
[1645910202437,0.722,2839.4,2839.3,0.00449331]
[1645910202638,2.74355962,2839.4,2839.3,0.00449331]
[1645910203136,3.74355962,2839.4,2839.3,0.00249957]
[1645910203333,4.62483962,2839.4,2839.1,0.0203606]
[1645910203531,4.62483962,2839.4,2839.2,0.00541297]
[1645910204433,4.62483962,2839.4,2839.1,0.0203606]
[1645910205036,4.76563962,2839.4,2839.1,0.0203606]
[1645910205235,3.5,2839.3,2839.1,0.0203606]
[1645910205436,0.422,2839.2,2839.1,0.0203606]
[1645910205836,0.722,2839.2,2839.1,0.0203606]
[1645910206037,2.71509753,2839.2,2839.1,0.0203606]
[1645910206237,0.3,2839.3,2839.1,0.0203606]
[1645910206540,10.16235962,2839.4,2839.1,0.0203606]
[1645910206541,0.422,2839.2,2839.1,0.0203606]
[1645910206936,0.322,2839.2,2839.1,0.0203606]
[1645910207236,0.622,2839.2,2839.1,0.02485107]
[1645910208037,0.622,2839.2,2839.1,0.0203606]
[1645910209340,1.57092682,2839.2,2839.1,0.0203606]
[1645910209540,1.57092682,2839.2,2838.6,7.361099]
[1645910209738,1.57092682,2839.2,2838.6,0.0216564]
[1645910210285,1.57092682,2839.2,2838.0,7.7129]
[1645910210474,1.36046892,2838.6,2838.0,7.7129]
[1645910210977,1.57092682,2839.2,2838.0,7.7129]
[1645910211783,0.78129,2839.1,2838.0,7.7129]
[1645910211979,1.20329,2839.1,2838.5,0.00448586]
[1645910212178,1.20329,2839.1,2838.0,7.7129]
[1645910213282,1.20466598,2838.5,2838.0,7.36]
[1645910215824,1.20466598,2838.5,2838.1,1.42758608]
[1645910216022,11.72109,2839.1,2838.1,3.8529]
[1645910216023,9.1649,2839.1,2838.1,3.8529]
[1645910216421,1.94892682,2839.2,2838.1,3.8529]
[1645910216622,1.94892682,2839.2,2838.2,0.00365421]
[1645910216825,0.94892682,2839.2,2838.2,0.00365421]
[1645910217022,3.5,2838.5,2838.2,0.00365421]
[1645910217225,3.5,2838.5,2838.1,0.3529]
[1645910217621,3.5,2838.5,2838.1,3.8529]
[1645910217872,3.5,2838.5,2838.2,0.00446805]
[1645910218877,3.5,2838.5,2838.1,0.3529]
[1645910219073,3.5,2838.5,2838.2,0.00446797]
[1645910220074,3.5,2838.5,2838.1,0.3529]
[1645910220272,3.5,2838.5,2838.2,0.00541587]
[1645910221173,3.5,2838.5,2838.4,0.3529]
[1645910221374,3.5,2838.5,2838.4,3.8529]
[1645910221623,3.5,2838.5,2838.4,10.8991]
[1645910221825,3.5,2838.5,2838.4,7.3991]
[1645910223229,3.5,2838.5,2838.4,7.0462]
[1645910224531,3.5,2838.5,2838.4,7.3991]
[1645910225281,3.5,2838.5,2838.4,7.0462]
[1645910226073,1.91199185,2838.5,2838.4,7.0462]
[1645910226875,3.27283058,2838.5,2838.4,7.0462]
[1645910227475,1.91199185,2838.5,2838.4,7.0462]
[1645910228581,3.27107134,2838.5,2838.4,7.0462]
[1645910230335,3.27107134,2838.5,2837.7,0.02167598]
[1645910230336,9.5,2838.3,2837.7,0.02167598]
[1645910230536,0.2817,2838.0,2837.7,0.02167598]
[1645910230735,0.7749,2837.9,2837.0,3.0952]
[1645910230939,0.7749,2837.9,2837.0,7.36]
[1645910230940,1.234647,2837.7,2837.0,7.36]
[1645910231141,0.88181,2837.5,2837.0,7.36]
[1645910231340,1.02657225,2837.4,2837.0,7.36]
[1645910231738,1.37947225,2837.4,2837.0,7.36]
[1645910232985,4.87947225,2837.4,2837.0,7.36]
[1645910233592,4.52657225,2837.4,2837.1,0.0054219]
[1645910233785,0.422,2837.3,2837.1,0.0054219]
[1645910234187,0.88189,2837.2,2837.0,7.2654219]
[1645910234388,0.88189,2837.2,2836.6,7.38169087]
[1645910234588,1.05189117,2836.9,2836.6,7.36]
[1645910234788,3.8529,2837.4,2836.6,7.36]
[1645910234989,0.3529,2837.4,2836.6,7.36]
[1645910235192,0.67824577,2837.5,2836.7,0.3529]
[1645910235391,1.76348,2838.2,2836.7,0.3529]
[1645910235392,6.92382586,2838.3,2836.7,0.3529]
[1645910235592,6.92382586,2838.3,2836.9,0.3529]
[1645910235593,6.50182586,2838.3,2836.9,0.3529]
[1645910235990,5.9863,2838.3,2837.0,1.80376774]
[1645910236193,1.0,2838.1,2837.1,8.81086774]
[1645910236391,1.0,2838.1,2837.2,1.45086774]
[1645910236626,1.0,2838.1,2837.2,1.45450543]
[1645910237224,0.00097774,2837.8,2837.2,1.45450543]
[1645910237623,0.00097774,2837.8,2837.2,1.45086774]
[1645910238230,1.0,2838.1,2837.2,1.45086774]
[1645910238231,1.3529,2838.1,2837.2,1.45086774]
[1645910238430,1.3529,2838.1,2837.2,1.45450543]
[1645910238431,0.00325907,2837.7,2837.2,1.45450543]
[1645910238632,0.00325907,2837.7,2837.2,1.45086774]
[1645910239232,1.28786509,2837.6,2837.2,1.45086774]
[1645910240484,3.5,2837.5,2837.3,1.45086774]
[1645910240679,0.3529,2837.4,2836.8,1.45086774]
[1645910240879,1.19636248,2836.8,2836.7,0.00363769]
[1645910241078,1.19636248,2836.8,2836.6,1.45370761]
[1645910241779,3.8529,2837.5,2836.6,1.45370761]
[1645910241979,3.0384,2837.6,2836.6,1.4591303]
[1645910242181,3.5,2837.5,2836.7,1.4573453]
[1645910242380,3.5,2837.5,2836.8,2.10461144]
[1645910242580,3.5,2837.5,2836.9,1.45370761]
[1645910242782,3.5,2837.5,2837.0,1.45370761]
[1645910242986,3.5,2837.5,2837.1,1.45370761]
[1645910243179,3.5,2837.5,2836.8,0.00363769]
[1645910243180,1.17208481,2837.4,2837.0,0.00542209]
[1645910243381,1.17208481,2837.4,2837.1,1.45370761]
[1645910244326,1.17208481,2837.4,2837.2,1.45370761]
[1645910244524,1.17208481,2837.4,2837.3,1.45370761]
[1645910244724,1.17208481,2837.4,2837.1,1.45370761]
[1645910244926,1.17208481,2837.4,2837.2,1.45370761]
[1645910245129,1.17208481,2837.4,2837.3,1.45370761]
[1645910246128,4.1948856,2837.5,2837.3,1.45370761]
[1645910246329,3.08361052,2837.5,2837.4,1.45370761]
[1645910247329,3.08361052,2837.5,2837.4,2.33503761]
[1645910247786,10.85647257,2839.1,2837.6,22.29]
[1645910247787,2.7816,2839.1,2837.6,22.29]
[1645910247977,6.0927,2839.2,2837.6,22.29]
[1645910247978,0.0744439,2839.0,2838.1,12.0239911]
[1645910248179,7.0927,2839.2,2838.2,1.45370761]
[1645910248377,7.0927,2839.2,2838.5,0.88105]
[1645910248576,1.0,2839.2,2838.7,0.88103]
[1645910249179,1.0,2839.2,2838.8,1.44719105]
[1645910249379,0.00097774,2839.1,2838.8,1.44719105]
[1645910250181,1.0,2839.2,2838.8,1.44719105]
[1645910250579,0.00325098,2839.1,2838.8,1.44719105]
[1645910250783,0.00325098,2839.1,2838.8,2.32819105]
[1645910250979,0.00325098,2839.1,2838.9,1.44719105]
[1645910251180,0.00325098,2839.1,2838.7,0.88103]
[1645910251382,1.0,2839.2,2838.8,1.41840871]
[1645910251624,0.00325098,2839.1,2838.8,1.41840871]
[1645910252024,0.00325098,2839.1,2838.7,0.88103]
[1645910252226,0.00325098,2839.1,2838.4,1.76565827]
[1645910252227,0.00325098,2839.1,2838.4,0.00363827]
[1645910252425,0.00325098,2839.1,2838.4,1.41874388]
[1645910252426,0.07768588,2839.1,2838.4,1.41874388]
[1645910252630,0.0744349,2839.1,2838.4,0.00363827]
[1645910252826,0.00325098,2838.9,2838.2,1.42243166]
[1645910253637,2.20325098,2838.9,2838.2,1.42243166]
[1645910253937,2.20325098,2838.9,2838.3,0.88124]
[1645910253938,2.2,2838.9,2838.3,0.88124]
[1645910254136,0.00325098,2838.7,2838.4,1.41879339]
[1645910254936,2.2,2838.9,2838.4,1.41879339]
[1645910255378,0.00325098,2838.7,2838.4,1.41879339]
[1645910256179,2.2,2838.9,2838.4,1.41879339]
[1645910256378,0.00325098,2838.7,2838.4,1.41879339]
[1645910257384,2.2,2838.9,2838.4,1.41879339]
[1645910257785,0.00325098,2838.7,2838.4,1.41879339]
[1645910258284,0.00325098,2838.7,2838.4,1.31879339]
[1645910258488,0.00325098,2838.7,2838.3,0.88124]
[1645910259823,2.2,2838.9,2838.3,0.88124]
[1645910260024,0.00325098,2838.6,2838.3,0.88124]
[1645910260625,0.00325098,2838.6,2838.3,1.7624]
[1645910260825,0.00325098,2838.6,2838.3,5.2624]
[1645910261028,2.2,2838.9,2838.3,5.2624]
[1645910261226,0.00325098,2838.6,2838.3,5.2624]
[1645910261627,0.00325098,2838.6,2838.3,1.7624]
[1645910262325,2.2,2838.9,2838.4,0.88113]
[1645910262526,0.00325098,2838.6,2838.4,0.88113]
[1645910263420,2.2,2838.9,2838.4,0.88113]
[1645910263624,0.00325098,2838.6,2838.4,0.88113]
[1645910264621,2.2,2838.9,2838.4,0.88113]
[1645910264822,0.00325098,2838.6,2838.4,0.88113]
[1645910265722,0.00325098,2838.6,2838.3,0.88124]
[1645910265923,2.2,2838.9,2838.3,0.88124]
[1645910266127,0.00325098,2838.6,2838.3,0.88124]
[1645910266525,2.2,2838.9,2838.7,0.00305268]
[1645910270975,2.20324286,2838.9,2838.7,0.00305268]
[1645910271779,2.2,2838.9,2838.7,0.00305268]
[1645910272176,2.20324286,2838.9,2838.7,0.00305268]
[1645910272987,2.2,2838.9,2838.7,0.00305268]
[1645910273384,2.20324286,2838.9,2838.7,0.00305268]
[1645910273786,2.55614286,2838.9,2838.2,1.71544268]
[1645910274234,2.5529,2838.9,2838.2,1.71544268]
[1645910274436,0.0032428,2838.7,2838.2,1.71544268]
[1645910275433,2.2,2838.9,2838.2,1.71544268]
[1645910275634,0.00324268,2838.7,2838.2,1.71544268]
[1645910276440,0.00324268,2838.7,2838.2,2.59664268]
[1645910276638,2.2,2838.9,2838.3,0.88116]
[1645910276837,0.00324268,2838.7,2838.3,0.88116]
[1645910278980,0.07444044,2838.8,2838.4,1.41901186]
[1645910279375,0.0032428,2838.7,2838.4,1.41901186]
[1645910280178,0.07444044,2838.8,2838.4,1.41901186]
[1645910280577,0.0032428,2838.7,2838.4,1.41901186]
[1645910281379,0.07444044,2838.8,2838.4,1.41901186]
[1645910281613,0.0032428,2838.7,2838.4,1.41901186]
[1645910282710,0.07444044,2838.8,2838.4,1.41901186]
[1645910282917,0.0032428,2838.7,2838.5,3.5]
[1645910283122,0.0032428,2838.7,2838.6,1.41901186]
[1645910283515,0.0032428,2838.7,2838.6,8.46461186]
[1645910283712,0.0032428,2838.7,2838.6,9.46461186]
[1645910283916,2.2,2838.9,2838.6,10.54089753]
[1645910284118,0.00324286,2838.8,2838.7,2.16861186]
[1645910284713,0.00324286,2838.8,2838.7,1.41901186]
[1645910285270,2.20324286,2838.9,2838.7,1.41901186]
[1645910285862,2.20324286,2838.9,2838.7,3.18083186]
[1645910286064,5.8496,2839.7,2838.9,6.5]